[Event "Early-Titled-Tuesday-Blitz-February-13-2024"]
[Site "Chess.com"]
[Date "2024.02.13"]
[Round "6"]
[White "viviania"]
[Black "Evgeny81"]
[Result "0-1"]
[WhiteElo "2902"]
[BlackElo "2738"]
[TimeControl "180+1"]
[EndTime "9:10:36 PST"]
[Termination "Evgeny81 won on time"]

1. d4 {[%clk 0:02:57.4]} 1... d5 {[%clk 0:02:59.7]} 2. c4 {[%clk 0:02:57.1]}
2... e6 {[%clk 0:03:00]} 3. Nf3 {[%clk 0:02:56.7]} 3... Nf6 {[%clk 0:03:00.1]}
4. g3 {[%clk 0:02:56.7]} 4... dxc4 {[%clk 0:02:59.1]} 5. Bg2 {[%clk 0:02:56.2]}
5... a6 {[%clk 0:02:57.6]} 6. O-O {[%clk 0:02:55.7]} 6... Nc6 {[%clk 0:02:57.3]}
7. e3 {[%clk 0:02:55.9]} 7... Bd7 {[%clk 0:02:56.3]} 8. Qe2 {[%clk 0:02:55.6]}
8... b5 {[%clk 0:02:55.9]} 9. b3 {[%clk 0:02:54.8]} 9... cxb3 {[%clk 0:02:55]}
10. axb3 {[%clk 0:02:55]} 10... Be7 {[%clk 0:02:54.2]} 11. Bb2 {[%clk
0:02:48.2]} 11... Nb4 {[%clk 0:02:51.1]} 12. Ne5 {[%clk 0:02:46.7]} 12... Rb8
{[%clk 0:02:47.2]} 13. Na3 {[%clk 0:02:40.4]} 13... O-O {[%clk 0:02:45.6]} 14.
Nc2 {[%clk 0:02:40.4]} 14... Nxc2 {[%clk 0:02:42.7]} 15. Qxc2 {[%clk 0:02:40.3]}
15... Rb6 {[%clk 0:02:43]} 16. Rfc1 {[%clk 0:02:38.5]} 16... Bd6 {[%clk
0:02:35.1]} 17. e4 {[%clk 0:02:38.4]} 17... c6 {[%clk 0:02:24.3]} 18. Nxd7
{[%clk 0:02:21.4]} 18... Nxd7 {[%clk 0:02:23]} 19. e5 {[%clk 0:02:21.7]} 19...
Bb4 {[%clk 0:02:19.2]} 20. Bxc6 {[%clk 0:02:21.9]} 20... a5 {[%clk 0:02:07.8]}
21. h4 {[%clk 0:01:56.4]} 21... h6 {[%clk 0:02:06.4]} 22. Be4 {[%clk 0:01:49.7]}
22... Qb8 {[%clk 0:01:56.5]} 23. Qe2 {[%clk 0:01:45.7]} 23... Rd8 {[%clk
0:01:47.7]} 24. Rc2 {[%clk 0:01:38.6]} 24... Nf8 {[%clk 0:01:44.5]} 25. Qf3
{[%clk 0:01:33.2]} 25... Ra6 {[%clk 0:01:30.4]} 26. Rac1 {[%clk 0:01:19.7]}
26... Ra7 {[%clk 0:01:28.4]} 27. d5 {[%clk 0:01:15.6]} 27... exd5 {[%clk
0:01:13.5]} 28. Bxd5 {[%clk 0:01:15.6]} 28... Re7 {[%clk 0:01:10.5]} 29. Rc6
{[%clk 0:01:02]} 29... a4 {[%clk 0:01:03.2]} 30. bxa4 {[%clk 0:00:53]} 30...
bxa4 {[%clk 0:01:04.1]} 31. Ba1 {[%clk 0:00:53.1]} 31... Qb5 {[%clk 0:00:46.6]}
32. Bc4 {[%clk 0:00:47.2]} 32... Qb7 {[%clk 0:00:44.7]} 33. Qg4 {[%clk
0:00:34.7]} 33... Qd7 {[%clk 0:00:32]} 34. e6 {[%clk 0:00:30.1]} 34... fxe6
{[%clk 0:00:24.7]} 35. Bb5 {[%clk 0:00:19.5]} 35... Qd2 {[%clk 0:00:15.9]} 36.
Rb1 {[%clk 0:00:18.6]} 36... Ba5 {[%clk 0:00:09.4]} 37. Bf6 {[%clk 0:00:14.4]}
37... Rf7 {[%clk 0:00:09.7]} 38. Bxd8 {[%clk 0:00:13.7]} 38... Qxf2+ {[%clk
0:00:09.7]} 39. Kh1 {[%clk 0:00:13.5]} 39... Bxd8 {[%clk 0:00:09.3]} 40. Bxa4
{[%clk 0:00:12.6]} 40... Bf6 {[%clk 0:00:07.8]} 41. Rc2 {[%clk 0:00:11.6]} 41...
Qe3 {[%clk 0:00:07.6]} 42. Re2 {[%clk 0:00:07]} 42... Qd3 {[%clk 0:00:07.7]} 43.
Bc2 {[%clk 0:00:06.9]} 43... Qd5+ {[%clk 0:00:07]} 44. Kh2 {[%clk 0:00:06.1]}
44... Qd6 {[%clk 0:00:07.3]} 45. Rb8 {[%clk 0:00:04.8]} 45... Qxb8 {[%clk
0:00:07]} 0-1

[Event "Early-Titled-Tuesday-Blitz-February-13-2024"]
[Site "Chess.com"]
[Date "2024.02.13"]
[Round "6"]
[White "Yeritsyaan"]
[Black "shimastream"]
[Result "0-1"]
[WhiteElo "2612"]
[BlackElo "2988"]
[TimeControl "180+1"]
[EndTime "9:10:37 PST"]
[Termination "shimastream won on time"]

1. e4 {[%clk 0:02:54.8]} 1... e5 {[%clk 0:02:56.9]} 2. Nf3 {[%clk 0:02:54.6]}
2... Qe7 {[%clk 0:02:57.6]} 3. Nc3 {[%clk 0:02:53]} 3... c6 {[%clk 0:02:57.4]}
4. Bc4 {[%clk 0:02:47.1]} 4... d6 {[%clk 0:02:57.4]} 5. O-O {[%clk 0:02:46.8]}
5... Bg4 {[%clk 0:02:53.3]} 6. h3 {[%clk 0:02:46.6]} 6... Bh5 {[%clk 0:02:52.9]}
7. Re1 {[%clk 0:02:44.6]} 7... Nf6 {[%clk 0:02:49.7]} 8. Be2 {[%clk 0:02:43]}
8... Qc7 {[%clk 0:02:34.2]} 9. d4 {[%clk 0:02:42.5]} 9... Be7 {[%clk 0:02:33.9]}
10. Bg5 {[%clk 0:02:36.5]} 10... Nbd7 {[%clk 0:02:33]} 11. Nh4 {[%clk
0:02:30.3]} 11... Bg6 {[%clk 0:02:30.8]} 12. Nf5 {[%clk 0:02:21.6]} 12... Bxf5
{[%clk 0:02:28]} 13. exf5 {[%clk 0:02:22.5]} 13... O-O {[%clk 0:02:28.6]} 14.
Bf3 {[%clk 0:02:18.3]} 14... Rfe8 {[%clk 0:02:28]} 15. Qd2 {[%clk 0:02:15.4]}
15... d5 {[%clk 0:02:15.7]} 16. dxe5 {[%clk 0:02:08.2]} 16... Nxe5 {[%clk
0:02:16.6]} 17. Qf4 {[%clk 0:02:02.3]} 17... Bd6 {[%clk 0:02:14.5]} 18. Bxf6
{[%clk 0:01:58.2]} 18... gxf6 {[%clk 0:02:14.9]} 19. Bh5 {[%clk 0:01:29.9]}
19... Bf8 {[%clk 0:01:30.8]} 20. Re3 {[%clk 0:01:24.3]} 20... Kh8 {[%clk
0:01:28.6]} 21. Rg3 {[%clk 0:01:10.9]} 21... Bg7 {[%clk 0:01:23.7]} 22. Ne2
{[%clk 0:00:53.1]} 22... Rac8 {[%clk 0:01:20.8]} 23. Qh4 {[%clk 0:00:50.5]}
23... Nc4 {[%clk 0:01:18.1]} 24. Nf4 {[%clk 0:00:49.1]} 24... Re4 {[%clk
0:01:15]} 25. Rg4 {[%clk 0:00:16.5]} 25... Ne5 {[%clk 0:01:14.5]} 26. Ng6+
{[%clk 0:00:10.4]} 26... fxg6 {[%clk 0:01:08.7]} 27. Bxg6 {[%clk 0:00:11.1]}
27... Nxg6 {[%clk 0:01:01.7]} 28. fxg6 {[%clk 0:00:09.9]} 28... h6 {[%clk
0:01:02.4]} 29. Rxe4 {[%clk 0:00:09.4]} 29... dxe4 {[%clk 0:01:03]} 30. Qxe4
{[%clk 0:00:09.8]} 30... Qe5 {[%clk 0:00:53.5]} 31. Qxe5 {[%clk 0:00:09]} 31...
fxe5 {[%clk 0:00:54.4]} 32. Rd1 {[%clk 0:00:09.2]} 32... e4 {[%clk 0:00:34.6]}
33. c3 {[%clk 0:00:06.6]} 33... Be5 {[%clk 0:00:34.3]} 34. Rd7 {[%clk 0:00:06]}
34... Rc7 {[%clk 0:00:34.5]} 35. Rd8+ {[%clk 0:00:05.7]} 35... Kg7 {[%clk
0:00:34.4]} 36. Re8 {[%clk 0:00:06.6]} 36... Bf6 {[%clk 0:00:33.7]} 37. Rxe4
{[%clk 0:00:06]} 37... Kxg6 {[%clk 0:00:33.7]} 38. h4 {[%clk 0:00:04.8]} 38...
h5 {[%clk 0:00:33]} 39. g3 {[%clk 0:00:04.2]} 39... Rd7 {[%clk 0:00:33.3]} 40.
Kg2 {[%clk 0:00:03.8]} 40... Rd2 {[%clk 0:00:33.1]} 41. Rb4 {[%clk 0:00:04.3]}
41... b5 {[%clk 0:00:32.6]} 42. Kf3 {[%clk 0:00:02.5]} 42... a5 {[%clk
0:00:32.3]} 43. Rb3 {[%clk 0:00:03.1]} 43... Be7 {[%clk 0:00:31.1]} 44. a4
{[%clk 0:00:02.9]} 44... b4 {[%clk 0:00:25]} 45. cxb4 {[%clk 0:00:03]} 45...
Bxb4 {[%clk 0:00:25.9]} 46. Re3 {[%clk 0:00:02.6]} 46... Kf5 {[%clk 0:00:22.6]}
47. Re8 {[%clk 0:00:01.9]} 47... Rxb2 {[%clk 0:00:21.2]} 48. Rg8 {[%clk
0:00:02.5]} 48... Be7 {[%clk 0:00:20.3]} 49. Rh8 {[%clk 0:00:02.3]} 49... Kg6
{[%clk 0:00:19.4]} 0-1

[Event "Early-Titled-Tuesday-Blitz-February-13-2024"]
[Site "Chess.com"]
[Date "2024.02.13"]
[Round "6"]
[White "vladgoncharov"]
[Black "m_ezat"]
[Result "1-0"]
[WhiteElo "2632"]
[BlackElo "2449"]
[TimeControl "180+1"]
[EndTime "9:10:38 PST"]
[Termination "vladgoncharov won on time"]

1. d4 {[%clk 0:03:00.9]} 1... Nf6 {[%clk 0:02:52.4]} 2. c4 {[%clk 0:03:00.2]}
2... g6 {[%clk 0:02:50.6]} 3. Nc3 {[%clk 0:03:00.1]} 3... Bg7 {[%clk 0:02:50.4]}
4. Nf3 {[%clk 0:02:59]} 4... d6 {[%clk 0:02:50.4]} 5. Bg5 {[%clk 0:02:59.1]}
5... O-O {[%clk 0:02:50.6]} 6. e3 {[%clk 0:02:59.4]} 6... h6 {[%clk 0:02:50.1]}
7. Bh4 {[%clk 0:02:59.1]} 7... g5 {[%clk 0:02:48.3]} 8. Bg3 {[%clk 0:02:59.1]}
8... Nbd7 {[%clk 0:02:48.9]} 9. Be2 {[%clk 0:02:56.4]} 9... Nh5 {[%clk
0:02:48.5]} 10. Qc2 {[%clk 0:02:56.3]} 10... e5 {[%clk 0:02:48]} 11. dxe5 {[%clk
0:02:46.1]} 11... dxe5 {[%clk 0:02:44.4]} 12. Nd2 {[%clk 0:02:36.5]} 12... Nxg3
{[%clk 0:02:42.2]} 13. hxg3 {[%clk 0:02:36]} 13... f5 {[%clk 0:02:39.9]} 14. g4
{[%clk 0:02:18.3]} 14... Nc5 {[%clk 0:02:29.6]} 15. O-O-O {[%clk 0:02:11.7]}
15... c6 {[%clk 0:02:25.3]} 16. Nde4 {[%clk 0:02:02.8]} 16... Qa5 {[%clk
0:02:21.4]} 17. Nd6 {[%clk 0:01:58.8]} 17... e4 {[%clk 0:02:14]} 18. Nxc8 {[%clk
0:01:36.7]} 18... Raxc8 {[%clk 0:02:13]} 19. gxf5 {[%clk 0:01:36.7]} 19... b5
{[%clk 0:02:01.6]} 20. Kb1 {[%clk 0:01:26.6]} 20... b4 {[%clk 0:01:53]} 21. Nxe4
{[%clk 0:01:23.6]} 21... b3 {[%clk 0:01:53.1]} 22. axb3 {[%clk 0:01:11.7]} 22...
Nxb3 {[%clk 0:01:52.9]} 23. Qxb3 {[%clk 0:01:03]} 23... Rb8 {[%clk 0:01:47.2]}
24. Qxb8 {[%clk 0:01:01.1]} 24... Rxb8 {[%clk 0:01:45.9]} 25. f6 {[%clk
0:01:01.1]} 25... Qf5 {[%clk 0:01:41.3]} 26. Bd3 {[%clk 0:00:59.2]} 26... Bxf6
{[%clk 0:01:40.7]} 27. Rxh6 {[%clk 0:00:41.7]} 27... Bxb2 {[%clk 0:01:24.9]} 28.
Kc2 {[%clk 0:00:33.9]} 28... Kg7 {[%clk 0:01:13.9]} 29. Rdh1 {[%clk 0:00:31.3]}
29... Be5 {[%clk 0:01:06.4]} 30. Rh7+ {[%clk 0:00:24.6]} 30... Kg8 {[%clk
0:01:06.3]} 31. R1h6 {[%clk 0:00:22.5]} 31... Qg4 {[%clk 0:00:52.7]} 32. Re7
{[%clk 0:00:12.3]} 32... Rb1 {[%clk 0:00:26.4]} 33. Kxb1 {[%clk 0:00:07.5]}
33... Qd1+ {[%clk 0:00:26.3]} 34. Ka2 {[%clk 0:00:07.7]} 34... Qa4+ {[%clk
0:00:24.3]} 35. Kb1 {[%clk 0:00:07.4]} 35... Qd1+ {[%clk 0:00:22.4]} 36. Ka2
{[%clk 0:00:07.2]} 36... Qa1+ {[%clk 0:00:22.4]} 37. Kb3 {[%clk 0:00:07.1]}
37... Qb2+ {[%clk 0:00:19]} 38. Ka4 {[%clk 0:00:07.2]} 38... Qa2+ {[%clk
0:00:19.2]} 39. Kb4 {[%clk 0:00:07.3]} 39... c5+ {[%clk 0:00:12.9]} 40. Kxc5
{[%clk 0:00:07.1]} 40... Qa5+ {[%clk 0:00:11.8]} 41. Kc6 {[%clk 0:00:06.9]}
41... Qb6+ {[%clk 0:00:08.1]} 42. Kd5 {[%clk 0:00:07.1]} 42... Bg7 {[%clk
0:00:08.2]} 43. Rxb6 {[%clk 0:00:06.1]} 43... axb6 {[%clk 0:00:07.9]} 44. Rxg7+
{[%clk 0:00:06.6]} 1-0

[Event "Early-Titled-Tuesday-Blitz-February-13-2024"]
[Site "Chess.com"]
[Date "2024.02.13"]
[Round "6"]
[White "Schattman"]
[Black "Lion-Al-Messi"]
[Result "1/2-1/2"]
[WhiteElo "2394"]
[BlackElo "2571"]
[TimeControl "180+1"]
[EndTime "9:10:38 PST"]
[Termination "Game drawn by repetition"]

1. f4 {[%clk 0:03:00.9]} 1... Nf6 {[%clk 0:02:57.9]} 2. Nf3 {[%clk 0:03:00.1]}
2... g6 {[%clk 0:02:57.2]} 3. g3 {[%clk 0:03:00.5]} 3... Bg7 {[%clk 0:02:57.3]}
4. Bg2 {[%clk 0:03:00.9]} 4... O-O {[%clk 0:02:57.7]} 5. d3 {[%clk 0:03:00]}
5... d5 {[%clk 0:02:57.9]} 6. O-O {[%clk 0:02:58.3]} 6... b5 {[%clk 0:02:58]} 7.
Ne5 {[%clk 0:02:57.2]} 7... Bb7 {[%clk 0:02:57.7]} 8. a4 {[%clk 0:02:55.6]} 8...
b4 {[%clk 0:02:56.8]} 9. c3 {[%clk 0:02:55]} 9... a5 {[%clk 0:02:55.8]} 10. Be3
{[%clk 0:02:48.8]} 10... Nbd7 {[%clk 0:02:53.8]} 11. Nxd7 {[%clk 0:02:45.6]}
11... Qxd7 {[%clk 0:02:54.7]} 12. h3 {[%clk 0:02:45.8]} 12... Rfe8 {[%clk
0:02:53.7]} 13. Bd4 {[%clk 0:02:41.1]} 13... Rac8 {[%clk 0:02:51.7]} 14. cxb4
{[%clk 0:02:34.4]} 14... axb4 {[%clk 0:02:51.8]} 15. a5 {[%clk 0:02:32.3]} 15...
Qb5 {[%clk 0:02:49.7]} 16. Qa4 {[%clk 0:02:25.5]} 16... Qxa4 {[%clk 0:02:49.3]}
17. Rxa4 {[%clk 0:02:24.9]} 17... c5 {[%clk 0:02:50.2]} 18. Be5 {[%clk
0:02:18.1]} 18... Bc6 {[%clk 0:02:49.6]} 19. Ra1 {[%clk 0:02:11.4]} 19... Nd7
{[%clk 0:02:48.7]} 20. Bxg7 {[%clk 0:02:05.3]} 20... Kxg7 {[%clk 0:02:49.6]} 21.
Nd2 {[%clk 0:01:53.1]} 21... Ra8 {[%clk 0:02:49.2]} 22. e4 {[%clk 0:01:52.3]}
22... d4 {[%clk 0:02:48.1]} 23. e5 {[%clk 0:01:39.8]} 23... Rec8 {[%clk
0:02:46.4]} 24. Rfc1 {[%clk 0:01:30.2]} 24... Bxg2 {[%clk 0:02:44.5]} 25. Kxg2
{[%clk 0:01:30]} 25... Rc6 {[%clk 0:02:44.7]} 26. Kf3 {[%clk 0:01:18.2]} 26...
Rca6 {[%clk 0:02:44.7]} 27. Nb3 {[%clk 0:01:15.7]} 27... f6 {[%clk 0:02:19.5]}
28. Nxc5 {[%clk 0:01:11.7]} 28... Nxc5 {[%clk 0:02:19.6]} 29. Rxc5 {[%clk
0:01:11]} 29... fxe5 {[%clk 0:02:19.5]} 30. Rxe5 {[%clk 0:01:10.6]} 30... Kf6
{[%clk 0:02:16.2]} 31. Ra4 {[%clk 0:01:04.8]} 31... Rb8 {[%clk 0:02:13.5]} 32.
b3 {[%clk 0:01:04]} 32... e6 {[%clk 0:02:05.4]} 33. Ke4 {[%clk 0:01:02.4]} 33...
Rb7 {[%clk 0:01:53.1]} 34. Rc5 {[%clk 0:00:55.1]} 34... Rb8 {[%clk 0:01:33.2]}
35. Rc4 {[%clk 0:00:41.8]} 35... Rb5 {[%clk 0:01:33.3]} 36. Rxd4 {[%clk
0:00:40]} 36... Raxa5 {[%clk 0:01:32.2]} 37. Rxa5 {[%clk 0:00:39.7]} 37... Rxa5
{[%clk 0:01:32.6]} 38. Rxb4 {[%clk 0:00:39.8]} 38... Ra1 {[%clk 0:01:32.9]} 39.
h4 {[%clk 0:00:36.8]} 39... Re1+ {[%clk 0:01:26.2]} 40. Kf3 {[%clk 0:00:36.7]}
40... Rf1+ {[%clk 0:01:26.6]} 41. Ke2 {[%clk 0:00:35.6]} 41... Rg1 {[%clk
0:01:26.5]} 42. Kf2 {[%clk 0:00:34.8]} 42... Rd1 {[%clk 0:01:26.5]} 43. Rd4
{[%clk 0:00:34.3]} 43... Rb1 {[%clk 0:01:26.5]} 44. b4 {[%clk 0:00:34.4]} 44...
h6 {[%clk 0:01:25.5]} 45. Ke2 {[%clk 0:00:27.2]} 45... h5 {[%clk 0:01:23.5]} 46.
Rc4 {[%clk 0:00:25.5]} 46... Kf5 {[%clk 0:01:21.1]} 47. Kf3 {[%clk 0:00:23.8]}
47... Rd1 {[%clk 0:01:18.8]} 48. Rc5+ {[%clk 0:00:21.5]} 48... Kf6 {[%clk
0:01:18.5]} 49. Ke4 {[%clk 0:00:21.4]} 49... Re1+ {[%clk 0:01:18.5]} 50. Kd4
{[%clk 0:00:20.8]} 50... Rg1 {[%clk 0:01:18.5]} 51. b5 {[%clk 0:00:21.2]} 51...
Rb1 {[%clk 0:01:06.4]} 52. Re5 {[%clk 0:00:20.1]} 52... Ke7 {[%clk 0:01:01.1]}
53. Kc5 {[%clk 0:00:20]} 53... Rb3 {[%clk 0:00:59.4]} 54. d4 {[%clk 0:00:18.3]}
54... Rxg3 {[%clk 0:00:59]} 55. Rg5 {[%clk 0:00:18.5]} 55... Rc3+ {[%clk
0:00:58.4]} 56. Kb6 {[%clk 0:00:18.3]} 56... Rc4 {[%clk 0:00:52.5]} 57. Rxg6
{[%clk 0:00:15.6]} 57... Rxd4 {[%clk 0:00:52.9]} 58. Rg5 {[%clk 0:00:13.4]}
58... Rxf4 {[%clk 0:00:50.7]} 59. Rxh5 {[%clk 0:00:13.6]} 59... Kd6 {[%clk
0:00:51.2]} 60. Rh8 {[%clk 0:00:12.2]} 60... Kd7 {[%clk 0:00:49.6]} 61. h5
{[%clk 0:00:12.4]} 61... e5 {[%clk 0:00:49]} 62. Kb7 {[%clk 0:00:11.4]} 62... e4
{[%clk 0:00:48.9]} 63. Rh7+ {[%clk 0:00:09.9]} 63... Kd6 {[%clk 0:00:48.5]} 64.
Rh8 {[%clk 0:00:09.8]} 64... Kd7 {[%clk 0:00:48.6]} 65. Rh7+ {[%clk 0:00:08.2]}
65... Kd6 {[%clk 0:00:48.3]} 66. Rh6+ {[%clk 0:00:08.2]} 66... Kd7 {[%clk
0:00:48.4]} 67. Rh7+ {[%clk 0:00:08.4]} 1/2-1/2

[Event "Early-Titled-Tuesday-Blitz-February-13-2024"]
[Site "Chess.com"]
[Date "2024.02.13"]
[Round "6"]
[White "HajiyevKanan"]
[Black "szefru"]
[Result "1-0"]
[WhiteElo "2502"]
[BlackElo "2272"]
[TimeControl "180+1"]
[EndTime "9:10:39 PST"]
[Termination "HajiyevKanan won on time"]

1. d4 {[%clk 0:02:58.5]} 1... Nf6 {[%clk 0:02:56.9]} 2. Nf3 {[%clk 0:02:59.4]}
2... g6 {[%clk 0:02:56.1]} 3. c4 {[%clk 0:03:00.3]} 3... Bg7 {[%clk 0:02:55.8]}
4. g3 {[%clk 0:03:01]} 4... O-O {[%clk 0:02:55.7]} 5. Bg2 {[%clk 0:03:01.9]}
5... c6 {[%clk 0:02:56.2]} 6. O-O {[%clk 0:03:02.8]} 6... d5 {[%clk 0:02:56.6]}
7. b3 {[%clk 0:03:03.6]} 7... Bf5 {[%clk 0:02:53.5]} 8. Bb2 {[%clk 0:03:03.9]}
8... a5 {[%clk 0:02:47.9]} 9. Nc3 {[%clk 0:03:03.1]} 9... Na6 {[%clk 0:02:47.1]}
10. e3 {[%clk 0:03:02.5]} 10... Nb4 {[%clk 0:02:45.9]} 11. Ne1 {[%clk
0:02:55.2]} 11... Qd7 {[%clk 0:02:40.5]} 12. a3 {[%clk 0:02:55.3]} 12... Na6
{[%clk 0:02:40.3]} 13. Nd3 {[%clk 0:02:54.6]} 13... Ne4 {[%clk 0:02:39.2]} 14.
Nf4 {[%clk 0:02:34.6]} 14... Nc7 {[%clk 0:02:25.2]} 15. Qe2 {[%clk 0:02:22]}
15... Ne6 {[%clk 0:01:57.9]} 16. Nd3 {[%clk 0:02:09.3]} 16... Nxc3 {[%clk
0:01:34]} 17. Bxc3 {[%clk 0:02:09.5]} 17... a4 {[%clk 0:01:34.3]} 18. cxd5
{[%clk 0:02:07.4]} 18... Bxd3 {[%clk 0:01:26.8]} 19. Qxd3 {[%clk 0:01:59.2]}
19... cxd5 {[%clk 0:01:26.9]} 20. b4 {[%clk 0:01:54.9]} 20... Rac8 {[%clk
0:01:19.9]} 21. b5 {[%clk 0:01:51.3]} 21... Rc4 {[%clk 0:01:12.3]} 22. Rab1
{[%clk 0:01:51.5]} 22... Rfc8 {[%clk 0:01:11.3]} 23. Ba5 {[%clk 0:01:32.1]}
23... Ng5 {[%clk 0:01:00.6]} 24. h4 {[%clk 0:01:29.5]} 24... Ne6 {[%clk
0:00:55.5]} 25. Bb4 {[%clk 0:01:09.6]} 25... Bf6 {[%clk 0:00:52.7]} 26. Ba5
{[%clk 0:00:51.1]} 26... Ng7 {[%clk 0:00:52.1]} 27. Kh2 {[%clk 0:00:49.9]} 27...
g5 {[%clk 0:00:51.7]} 28. hxg5 {[%clk 0:00:49]} 28... Bxg5 {[%clk 0:00:51.7]}
29. Bh3 {[%clk 0:00:47.6]} 29... e6 {[%clk 0:00:51.6]} 30. b6 {[%clk 0:00:44.2]}
30... Be7 {[%clk 0:00:38.4]} 31. Bg4 {[%clk 0:00:33.4]} 31... h5 {[%clk
0:00:37.3]} 32. Bd1 {[%clk 0:00:31.4]} 32... h4 {[%clk 0:00:35.1]} 33. gxh4
{[%clk 0:00:28.8]} 33... Bxh4 {[%clk 0:00:34.2]} 34. Rb2 {[%clk 0:00:10.1]}
34... Be7 {[%clk 0:00:24.6]} 35. Bg4 {[%clk 0:00:07.9]} 35... Bd6+ {[%clk
0:00:24.8]} 36. f4 {[%clk 0:00:07.6]} 36... Qe7 {[%clk 0:00:24.9]} 37. Kg3
{[%clk 0:00:06.7]} 37... Rc1 {[%clk 0:00:10.2]} 38. Rxc1 {[%clk 0:00:04.6]}
38... Rxc1 {[%clk 0:00:11.1]} 39. Rg2 {[%clk 0:00:04.9]} 39... Bxa3 {[%clk
0:00:09.7]} 40. Qb5 {[%clk 0:00:03.8]} 40... Bd6 {[%clk 0:00:07.9]} 41. Qxa4
{[%clk 0:00:03.8]} 41... Rh1 {[%clk 0:00:05.5]} 42. Kf3 {[%clk 0:00:03.2]} 42...
Kf8 {[%clk 0:00:04.6]} 43. Qc2 {[%clk 0:00:03.3]} 43... Qh4 {[%clk 0:00:04.5]}
44. Qc8+ {[%clk 0:00:03.4]} 44... Ne8 {[%clk 0:00:03.6]} 45. Qxb7 {[%clk
0:00:04.1]} 45... Rf1+ {[%clk 0:00:02.8]} 46. Ke2 {[%clk 0:00:04.4]} 1-0

[Event "Early-Titled-Tuesday-Blitz-February-13-2024"]
[Site "Chess.com"]
[Date "2024.02.13"]
[Round "6"]
[White "tusplingher"]
[Black "NikitaShnadrygin"]
[Result "0-1"]
[WhiteElo "2465"]
[BlackElo "2637"]
[TimeControl "180+1"]
[EndTime "9:10:42 PST"]
[Termination "NikitaShnadrygin won by resignation"]

1. e4 {[%clk 0:03:00.9]} 1... c5 {[%clk 0:02:59.8]} 2. Nf3 {[%clk 0:03:00.7]}
2... e6 {[%clk 0:02:59.9]} 3. d4 {[%clk 0:03:00.7]} 3... cxd4 {[%clk 0:02:59.2]}
4. Nxd4 {[%clk 0:03:01.4]} 4... Nf6 {[%clk 0:02:59.9]} 5. Nc3 {[%clk 0:03:01]}
5... Nc6 {[%clk 0:02:59.5]} 6. Ndb5 {[%clk 0:02:58.6]} 6... Bb4 {[%clk
0:02:59.1]} 7. Bf4 {[%clk 0:02:56.4]} 7... Nxe4 {[%clk 0:02:53.7]} 8. Nc7+
{[%clk 0:02:27.5]} 8... Kf8 {[%clk 0:02:52.8]} 9. Nxa8 {[%clk 0:02:07.6]} 9...
Qf6 {[%clk 0:02:33.6]} 10. Qf3 {[%clk 0:02:06.3]} 10... Nxc3 {[%clk 0:02:27.1]}
11. Bd2 {[%clk 0:01:57.9]} 11... Nd4 {[%clk 0:01:57.5]} 12. Qd3 {[%clk 0:01:33]}
12... Qe5+ {[%clk 0:01:33.6]} 13. Be2 {[%clk 0:01:29.8]} 13... Ncxe2 {[%clk
0:01:13.8]} 14. Bxb4+ {[%clk 0:01:25.4]} 14... d6 {[%clk 0:01:13.3]} 15. Kf1
{[%clk 0:01:16.7]} 15... Nf4 {[%clk 0:01:10]} 16. Qc4 {[%clk 0:01:14.3]} 16...
Bd7 {[%clk 0:01:09.6]} 17. Re1 {[%clk 0:01:13.5]} 17... Bb5 {[%clk 0:01:06.2]}
18. Rxe5 {[%clk 0:01:02.3]} 18... Bxc4+ {[%clk 0:01:06.3]} 19. Ke1 {[%clk
0:01:01.7]} 19... Nxc2+ {[%clk 0:01:06.4]} 20. Kd2 {[%clk 0:01:01]} 20... Nxb4
{[%clk 0:01:03.1]} 21. Re4 {[%clk 0:01:00.1]} 21... d5 {[%clk 0:00:37.6]} 22.
Rxf4 {[%clk 0:00:56.7]} 22... Nxa2 {[%clk 0:00:37.6]} 23. Nc7 {[%clk 0:00:49.4]}
23... Ke7 {[%clk 0:00:33.9]} 24. b3 {[%clk 0:00:46.4]} 24... Bxb3 {[%clk
0:00:29.2]} 25. Rb1 {[%clk 0:00:44]} 25... e5 {[%clk 0:00:18.6]} 26. Rg4 {[%clk
0:00:31]} 26... Bc4 {[%clk 0:00:16.3]} 27. Rxb7 {[%clk 0:00:28.4]} 27... Kf6
{[%clk 0:00:16.4]} 28. Rxa7 {[%clk 0:00:25.6]} 28... Nb4 {[%clk 0:00:16.3]} 29.
f4 {[%clk 0:00:22.3]} 29... e4 {[%clk 0:00:14.7]} 30. Rg5 {[%clk 0:00:16.2]}
30... d4 {[%clk 0:00:14]} 31. Ra4 {[%clk 0:00:12.5]} 31... e3+ {[%clk
0:00:14.1]} 32. Kd1 {[%clk 0:00:12]} 32... Bb3+ {[%clk 0:00:11.9]} 33. Ke2
{[%clk 0:00:12]} 33... Bxa4 {[%clk 0:00:12.4]} 34. Re5 {[%clk 0:00:11.3]} 34...
Rd8 {[%clk 0:00:10.1]} 35. g4 {[%clk 0:00:08.9]} 35... g6 {[%clk 0:00:10.1]} 36.
Ra5 {[%clk 0:00:05.9]} 36... Nc2 {[%clk 0:00:08.3]} 37. Nd5+ {[%clk 0:00:03.7]}
37... Rxd5 {[%clk 0:00:07.5]} 38. Rxd5 {[%clk 0:00:03.7]} 38... Bb3 {[%clk
0:00:08.1]} 39. Rd6+ {[%clk 0:00:03.3]} 39... Ke7 {[%clk 0:00:08.4]} 40. Rb6
{[%clk 0:00:03.7]} 40... Bc4+ {[%clk 0:00:08.6]} 41. Kf3 {[%clk 0:00:04.3]}
41... e2 {[%clk 0:00:07.7]} 42. Rb7+ {[%clk 0:00:05]} 42... Kf6 {[%clk 0:00:08]}
43. g5+ {[%clk 0:00:04.2]} 43... Kg7 {[%clk 0:00:08.6]} 44. Rb1 {[%clk
0:00:04.3]} 44... e1=Q {[%clk 0:00:09.5]} 45. Rxe1 {[%clk 0:00:02.7]} 45...
Nxe1+ {[%clk 0:00:10.4]} 46. Ke4 {[%clk 0:00:03.4]} 46... d3 {[%clk 0:00:10.5]}
47. Ke3 {[%clk 0:00:03.4]} 47... Ng2+ {[%clk 0:00:11.1]} 48. Kd2 {[%clk
0:00:03.7]} 48... Nxf4 {[%clk 0:00:12]} 0-1